fUST/lending_fUST_20251222
["ID","MTS","AMOUNT","RATE_DAILY","PERIOD"]
[399460894,1766374240806,-151.0,0.00014247,2]
[399460896,1766374240815,-284.18150746,0.00014268,2]
[399460898,1766374240824,-260.0,0.0001429,2]
[399460900,1766374240833,-250.0,0.00014309,2]
[399460902,1766374240842,-250.0,0.00014309,2]
[399460904,1766374240851,-250.0,0.00014309,2]
[399460906,1766374240860,-250.0,0.00014309,2]
[399460907,1766374240869,-250.0,0.00014309,2]
[399460908,1766374240878,-250.0,0.00014309,2]
[399460909,1766374240887,-250.0,0.00014309,2]
[399460910,1766374240895,-250.0,0.00014309,2]
[399460911,1766374240905,-250.0,0.00014309,2]
[399460912,1766374240914,-250.0,0.00014309,2]
[399460913,1766374240923,-250.0,0.00014309,2]
[399460914,1766374240934,-250.0,0.00014309,2]
[399460915,1766374240943,-250.0,0.00014309,2]
[399460916,1766374240952,-250.0,0.00014309,2]
[399460917,1766374240961,-250.0,0.00014309,2]
[399460918,1766374240970,-250.0,0.00014309,2]
[399460919,1766374240979,-250.0,0.00014309,2]
[399460920,1766374240988,-253.86882661,0.00014309,2]
[399460921,1766374240998,-720.0,0.0001431,2]
[399460922,1766374241008,-650.3747991,0.00014368,2]
[399460923,1766374241017,-1000.0,0.00014368,2]
[399460924,1766374241026,-1500.0,0.00014368,2]
[399460925,1766374241036,-1000.0,0.00014368,2]
[399460926,1766374241045,-900.0,0.00014768,2]
[399460927,1766374241055,-277.17219426,0.00014776,2]
[399460928,1766374241063,-1208.31459631,0.00014795,2]
[399460929,1766374241072,-1500.0,0.00014795,2]
[399460930,1766374241082,-1500.0,0.00014795,2]
[399460931,1766374241091,-1327.49422228,0.00014795,2]
[399460932,1766374241099,-502.03438249,0.00014795,2]
[399460933,1766374241108,-360.0,0.00014838,2]
[399460934,1766374241118,-503.36756805,0.00014916,2]
[399460935,1766374241127,-1000.0,0.00015,2]
[399460937,1766374241136,-151.0,0.00015342,2]
[399460938,1766374241146,-151.0,0.00015342,2]
[399460939,1766374241155,-2000.0,0.00015342,2]
[399460940,1766374241165,-460.0,0.00015386,2]
[399460942,1766374241174,-864.0,0.00015741,2]
[399460944,1766374241184,-266.576,0.00015789,2]
[399460946,1766374241197,-2500.0,0.0001589,2]
[399460948,1766374241207,-560.0,0.00015933,2]
[399460950,1766374241216,-187.7696469,0.00015985,2]
[399460952,1766374241226,-100000.0,0.0001599,2]
[399460954,1766374241235,-151.0,0.0001599,2]
[399460956,1766374241244,-151.0,0.0001599,2]
[399460958,1766374241254,-13040.8650441,0.00016328,2]
[399460960,1766374241263,-2297.3915829,0.00016328,2]
[399460962,1766374241272,-432.8370388,0.000164,2]
[399460964,1766374241283,-287.91402979,0.00016438,2]
[399460966,1766374241292,-518.24525363,0.00016438,2]
[399460968,1766374241302,-920.40357044,0.00016438,2]
[399460970,1766374241311,-150.8,0.00016438,2]
[399460972,1766374241321,-213.20889651,0.00016438,2]
[399460974,1766374241330,-151.0,0.00016438,2]
[399460976,1766374241339,-151.0,0.00016438,2]
[399460978,1766374241348,-151.0,0.00016438,2]
[399460980,1766374241357,-151.0,0.00016438,2]
[399460982,1766374241367,-151.0,0.00016438,2]
[399460984,1766374241376,-151.0,0.00016438,2]
[399460986,1766374241386,-151.0,0.00016438,2]
[399460988,1766374241395,-151.0,0.00016438,2]
[399460990,1766374241405,-151.0,0.00016438,2]
[399460992,1766374241415,-151.0,0.00016438,2]
[399460994,1766374241424,-3000.0,0.00016438,2]
[399460996,1766374241435,-660.0,0.00016481,2]
[399460998,1766374241444,-2303.44770343,0.00016534,2]
[399461000,1766374241454,-268.36017823,0.00016603,3]
[399461002,1766374241463,-150.8,0.00016712,2]
[399461004,1766374241472,-309.56894424,0.00016776,2]
[399461006,1766374241481,-155.58901434,0.00016865,2]
[399461008,1766374241491,-150.8,0.00016986,2]
[399461010,1766374241500,-3500.0,0.00016986,2]
[399461012,1766374241510,-8461.21452061,0.00017,2]
[399461014,1766374241523,-5000.0,0.00017,2]
[399461016,1766374241533,-1043.79635524,0.00017,3]
[399461018,1766374241543,-500.0,0.00017,2]
[399461020,1766374241552,-151.0,0.00017,2]
[399461023,1766374241563,-174.857794,0.00017,2]
[399461024,1766374241574,-760.0,0.00017029,2]
[399461026,1766374241583,-500.0,0.00017195,2]
[399461028,1766374241593,-150.8,0.0001726,2]
[399461030,1766374241604,-6748.61875846,0.0001726,2]
[399461032,1766374241615,-1000.0,0.00017315,2]
[399461034,1766374241625,-150.8,0.00017534,2]
[399461036,1766374241634,-4000.0,0.00017534,2]
[399461038,1766374241643,-860.0,0.00017577,2]
[399461040,1766374241653,-2131.22023063,0.000176,2]
[399461042,1766374241663,-214.0,0.00017699,3]
[399461044,1766374241672,-150.8,0.00017808,2]
[399461046,1766374241682,-2000.0,0.00018,14]
[399461048,1766374241691,-1106.0,0.00018,14]
[399461050,1766374241701,-265.22,0.00018,14]
[399461052,1766374241710,-124794.4108341,0.00018,2]
[399461054,1766374241720,-20659.28075176,0.00018,2]
[399461056,1766374241735,-5257.04851778,0.00018,2]
[399461058,1766374241746,-4021.45061454,0.00018,2]
[399461060,1766374241755,-848.64230049,0.00018,5]
[399461062,1766374241764,-500.0,0.00018,2]
[399461064,1766374241773,-478.54080194,0.00018054,2]
[399461066,1766374241782,-150.8,0.00018082,2]
[399461068,1766374241792,-1823.201,0.00018082,2]
[399461070,1766374241801,-4500.0,0.00018082,2]
[399461072,1766374241810,-960.0,0.00018125,2]
[399461075,1766374241821,-2000.0,0.00018204,2]
[399461077,1766374241830,-375.7775887,0.00018219,2]
[399461079,1766374241839,-375.7775887,0.00018219,2]
[399461081,1766374241849,-375.7775887,0.00018219,2]
[399461083,1766374241857,-375.7775887,0.00018219,2]
[399461085,1766374241866,-375.7775887,0.00018219,2]
[399461087,1766374241876,-751.5551774,0.00018219,2]
[399461089,1766374241885,-375.7775887,0.00018219,2]
[399461091,1766374241894,-375.7775887,0.00018219,2]
[399461093,1766374241903,-375.7775887,0.00018219,2]
[399461095,1766374241912,-375.7775887,0.00018219,2]
[399461097,1766374241922,-375.7775887,0.00018219,2]
[399461099,1766374241932,-375.7775887,0.00018219,2]
[399461101,1766374241941,-751.5551774,0.00018219,2]
[399461103,1766374241950,-375.8108573,0.00018219,2]
[399461105,1766374241959,-1124.78645974,0.00018257,8]
[399461107,1766374241968,-150.8,0.00018356,2]
[399461109,1766374241978,-150.8,0.0001863,2]
[399461111,1766374241987,-5000.0,0.0001863,2]
[399461113,1766374241996,-1060.0,0.00018673,2]
[399461115,1766374242006,-341.96569422,0.00018776,2]
[399461117,1766374242015,-216.0,0.00018795,3]
[399461119,1766374242025,-21515.86482787,0.000189,2]
[399461121,1766374242034,-302.78807257,0.000189,2]
[399461122,1766374242044,-302.78807257,0.000189,2]
[399461123,1766374242057,-150.8,0.00018904,2]
[399461124,1766374242066,-154.4894839,0.00018904,2]
[399461125,1766374242076,-153.0,0.00018904,2]
[399461126,1766374242087,-153.0,0.00018904,2]
[399461127,1766374242096,-18000.0,0.00019,2]
[399461128,1766374242106,-42938.96708961,0.00019,2]
[399461134,1766374243156,-151.0,0.00014247,2]
[399461135,1766374243165,-219.875785,0.00015342,2]
[399461136,1766374243175,-5697.04075665,0.0001699,2]
[399461186,1766375432063,-4460.19958946,8.701e-05,2]
[399461187,1766375432075,-539.80041054,8.701e-05,2]
[399461188,1766375432086,-542.0,8.701e-05,2]
[399461189,1766375432097,-150.0,8.745e-05,2]
[399461190,1766375432108,-150.0,8.789e-05,2]
[399461191,1766375432119,-150.0,9.208e-05,2]
[399461192,1766375432130,-150.0,9.626e-05,2]
[399461193,1766375432139,-150.0,0.00010045,2]
[399461194,1766375432149,-150.0,0.00010463,2]
[399461195,1766375432159,-177.0,0.00010745,2]
[399461196,1766375432169,-150.0,0.00010882,2]
[399461197,1766375432179,-150.0,0.000113,2]
[399461198,1766375432188,-150.0,0.00011719,2]
[399461199,1766375432198,-204.0,0.00012745,2]
[399461200,1766375432208,-1041.66666667,0.0001291,2]
[399461202,1766375432217,-479.65589588,0.00013273,2]
[399461203,1766375432227,-500.0,0.00013273,2]
[399461205,1766375432236,-435.17713299,0.00013273,2]
[399461208,1766375432266,-65.17459907,0.00013273,2]
[399461210,1766375432276,-500.0,0.00013273,2]
[399461212,1766375432285,-486.02703213,0.00013699,2]
[399461214,1766375432296,-296.77200953,0.00013699,2]
[399461216,1766375432307,-139.92216134,0.00013699,2]
[399461218,1766375432317,-11695.73733792,0.00013699,2]
[399461220,1766375432326,-500.0,0.00013699,2]
[399461221,1766375432335,-501.01680895,0.00013699,2]
[399461223,1766375432345,-1000.0,0.00013821,2]
[399461224,1766375432355,-500.0,0.00013977,2]
[399461225,1766375432365,-160.0,0.00013979,3]
[399461226,1766375432374,-265.4894,0.00014246,2]
[399461227,1766375432383,-1000.0,0.00014247,2]
[399461228,1766375432392,-160.0,0.00014294,4]
[399461230,1766375432402,-503.09300538,0.00014368,2]
[399461232,1766375432411,-160.0,0.00014609,5]
[399461233,1766375432420,-258.257708,0.00014683,2]
[399461234,1766375432429,-231.0,0.00014745,2]
[399461235,1766375432439,-1500.0,0.00014795,2]
[399461236,1766375432448,-12523.6710477,0.0001482,2]
[399461237,1766375432458,-160.0,0.00014924,6]
[399461238,1766375432467,-501.25303398,0.00015,2]
[399461239,1766375432476,-1000.0,0.00015,2]
[399461240,1766375432485,-800.0,0.00015068,2]
[399461241,1766375432494,-160.0,0.00015239,7]
[399461242,1766375432503,-2000.0,0.00015342,2]
[399461243,1766375432513,-160.0,0.00015555,8]
[399461244,1766375432523,-160.0,0.0001587,9]
[399461245,1766375432532,-2500.0,0.0001589,2]
[399461246,1766375432541,-160.0,0.00015918,2]
[399461247,1766375432551,-43140.33922201,0.0001599,2]
[399461248,1766375432562,-2207.54002405,0.0001599,2]
[399461249,1766375432573,-308.63329648,0.0001599,2]
[399461250,1766375432585,-330.25242726,0.0001599,2]
[399461277,1766375438196,-500.0,0.00013977,2]
[399461278,1766375438206,-622.99160923,0.00013977,2]
[399461279,1766375438216,-185.83306905,0.00013977,2]
[399461280,1766375438225,-2994.61003104,0.0001599,2]
[399461330,1766375440407,-5638.4661135,0.0001599,2]
[399461618,1766375443320,-23136.74383965,0.0001599,2]
[399461620,1766375443331,-751.23074507,0.0001599,2]
[399461622,1766375443342,-12100.0,0.0001599,2]
[399461656,1766375446180,-708.95109972,0.0001583,2]
[399461657,1766375446340,-2001.07681706,0.0001583,2]
[399461658,1766375506914,350.58396108,0.00032877,120]
[399461659,1766375559516,206.48166356,0.00023696,120]
[399461660,1766375561233,158.34875819,0.00024406,110]
[399461661,1766375595290,176.39600412,0.0003287,60]
[399461662,1766375708225,17607.31924688,0.00032876,60]
[399461663,1766376030522,500.0,0.00032,60]
[399461664,1766376035649,500.0,0.00032,60]
[399461665,1766376036857,500.0,0.00032548,60]
[399461666,1766376044728,500.0,0.00032,60]
[399461667,1766376097124,500.0,0.00032,60]
[399461668,1766376106660,773.762604,0.00032876,60]
[399461669,1766376164886,500.0,0.00032876,60]
[399461670,1766376389364,5000.0,0.00032877,60]
[399461703,1766376638328,-150.0,8.049e-05,2]
[399461704,1766376638339,-391.086,8.049e-05,2]
[399461705,1766376638350,-141.914,8.049e-05,2]
[399461706,1766376638359,-170.7632744,8.207e-05,2]
[399461707,1766376638376,-150.0,8.432e-05,2]
[399461708,1766376638388,-150.0,8.853e-05,2]
[399461709,1766376638398,-40.63967927,9.206e-05,2]
[399461710,1766376638410,-122.46032073,9.206e-05,2]
[399461711,1766376638420,-203.87,9.589e-05,2]
[399461712,1766376638430,-244.65,9.973e-05,2]
[399461713,1766376638439,-456.63396859,0.00010022,2]
[399461714,1766376638449,-201.50066379,0.00010207,2]
[399461715,1766376638458,-285.42,0.00010357,2]
[399461716,1766376638468,-1039.41784222,0.00010732,2]
[399461717,1766376638477,-326.2,0.0001074,2]
[399461718,1766376638487,-1041.66666667,0.00011037,2]
[399461719,1766376638496,-366.97,0.00011124,2]
[399461720,1766376638505,-191.09673292,0.00011191,2]
[399461721,1766376638515,-407.75,0.00011507,2]
[399461722,1766376638524,-232.23805318,0.00012207,2]
[399461723,1766376638533,-953.06497649,0.00013125,2]
[399461724,1766376638544,-1200.0,0.00013271,2]
[399461725,1766376638563,-300.0,0.00013272,2]
[399461726,1766376638572,-500.0,0.00013273,2]
[399461727,1766376638581,-381.6610036,0.00013273,2]
[399461728,1766376638590,-188.47367769,0.00013273,2]
[399461729,1766376638600,-500.0,0.00013273,2]
[399461730,1766376638609,-500.0,0.00013273,2]
[399461731,1766376638618,-502.66691396,0.00013273,2]
[399461732,1766376638628,-500.64892236,0.00013273,2]
[399461733,1766376638637,-500.0,0.00013273,2]
[399461734,1766376638647,-500.0,0.00013273,2]
[399461735,1766376638656,-500.0,0.00013273,2]
[399461736,1766376638666,-500.0,0.00013273,2]
[399461737,1766376638676,-500.36736211,0.00013273,2]
[399461738,1766376638686,-500.0,0.00013273,2]
[399461739,1766376638695,-500.0,0.00013273,2]
[399461740,1766376638706,-210.3352948,0.00013273,2]
[399461741,1766376638716,-500.0,0.00013273,2]
[399461742,1766376638725,-171.31273185,0.00013273,2]
[399461743,1766376638735,-500.0,0.00013273,2]
[399461744,1766376638746,-500.0,0.00013273,2]
[399461745,1766376638756,-500.0,0.00013273,2]
[399461746,1766376638766,-500.0,0.00013273,2]
[399461747,1766376638775,-635.19392553,0.00013273,2]
[399461748,1766376638785,-500.0,0.00013273,2]
[399461749,1766376638795,-207.38033711,0.00013273,2]
[399461750,1766376638804,-150.42170036,0.00013273,2]
[399461751,1766376638814,-245.82,0.00013499,2]
[399461752,1766376638824,-600.0,0.00013537,2]
[399461753,1766376638833,-179.45777587,0.00013572,2]
[399461754,1766376638843,-480.08314834,0.00013572,2]
[399461755,1766376638853,-500.0,0.00013572,2]
[399461756,1766376638863,-500.0,0.00013572,2]
[399461757,1766376638873,-500.0,0.00013572,2]
[399461758,1766376638883,-300.0,0.00013573,2]
[399461759,1766376638893,-273.62,0.00013573,2]
[399461760,1766376638903,-3140.88609445,0.00013573,2]
[399461761,1766376638912,-11539.42419759,0.00013573,2]
[399461762,1766376638924,-3006.42278168,0.00013573,2]
[399461763,1766376638934,-300.0,0.00013673,2]
[399461764,1766376638944,-500.0,0.00013699,2]
[399461765,1766376638956,-500.24202541,0.00013699,2]
[399461766,1766376638966,-500.0,0.00013699,2]
[399461767,1766376638976,-500.0,0.00013699,2]
[399461768,1766376638987,-500.0,0.00013699,2]
[399461769,1766376638997,-500.0,0.00013699,2]
[399461770,1766376639007,-351.27071052,0.00013699,2]
[399461771,1766376639017,-322.013094,0.00013699,2]
[399461772,1766376639028,-500.0,0.00013699,2]
[399461773,1766376639037,-500.0,0.00013699,2]
[399461774,1766376639046,-501.59990885,0.00013699,2]
[399461775,1766376639056,-501.92488093,0.00013699,2]
[399461776,1766376639067,-500.66171655,0.00013699,2]
[399461777,1766376639077,-500.0,0.00013699,2]
[399461778,1766376639087,-500.58858641,0.00013699,2]
[399461779,1766376639097,-500.0,0.00013699,2]
[399461780,1766376639107,-501.04434648,0.00013699,2]
[399461781,1766376639118,-608.23960274,0.00013699,2]
[399461782,1766376639128,-501.3459358,0.00013699,2]
[399461783,1766376639139,-500.0,0.00013699,2]
[399461784,1766376639149,-500.0,0.00013699,2]
[399461785,1766376639158,-500.0,0.00013699,2]
[399461786,1766376639170,-500.0,0.00013699,2]
[399461787,1766376639181,-500.0,0.00013699,2]
[399461788,1766376639191,-500.0,0.00013699,2]
[399461789,1766376639200,-335.93933134,0.00013821,2]
[399461790,1766376639210,-500.0,0.00013821,2]
[399461791,1766376639221,-584.91599686,0.00013821,2]
[399461792,1766376639231,-1000.0,0.00013821,2]
[399461793,1766376639241,-1000.0,0.00013821,2]
[399461794,1766376639253,-1000.0,0.00013821,2]
[399461795,1766376639263,-1000.0,0.00013821,2]
[399461796,1766376639272,-1000.0,0.00013821,2]
[399461797,1766376639282,-1000.0,0.00013821,2]
[399461798,1766376639291,-1000.0,0.00013821,2]
[399461799,1766376639301,-1000.0,0.00013821,2]
[399461800,1766376639311,-1000.0,0.00013821,2]
[399461801,1766376639321,-500.67211003,0.00013821,2]
[399461802,1766376639330,-575.5078373,0.00013821,2]
[399461803,1766376639341,-1000.0,0.00013821,2]
[399461804,1766376639350,-1370.981,0.00013897,2]
[399461805,1766376639360,-633.0,0.00013897,2]
[399461806,1766376639370,-2162.281,0.00013897,2]
[399461807,1766376639380,-551.409,0.00013897,2]
[399461808,1766376639389,-1850.01838023,0.00013905,2]
[399461809,1766376639399,-3140.88609444,0.00014041,2]
[399461810,1766376639409,-262.97544257,0.00014207,2]
[399461811,1766376639419,-600.0,0.00014221,2]
[399461812,1766376639429,-501.26360061,0.00014247,2]
[399461813,1766376639439,-1000.0,0.00014247,2]
[399461814,1766376639448,-197.3838396,0.00014247,2]
[399461815,1766376639458,-1000.0,0.00014247,2]
[399461816,1766376639467,-511.49254728,0.00014368,2]
[399461817,1766376639477,-1500.0,0.00014368,2]
[399461818,1766376639487,-1500.0,0.00014368,2]
[399461819,1766376639496,-1500.0,0.00014368,2]
[399461820,1766376639506,-499.5342913,0.00014368,2]
[399461821,1766376639515,-1500.0,0.00014368,2]
[399461822,1766376639525,-1500.0,0.00014368,2]
[399461823,1766376639534,-500.92186374,0.00014368,2]
[399461824,1766376639544,-423.03184811,0.00014368,2]
[399461825,1766376639553,-1278.22126253,0.00014368,2]
[399461826,1766376639564,-3140.88609444,0.0001451,2]
[399461827,1766376639573,-420.0,0.00014551,2]
[399461828,1766376639583,-1680.0,0.00014598,2]
[399461829,1766376639592,-160.0,0.0001463,2]
[399461830,1766376639601,-900.0,0.00014768,2]
[399461831,1766376639611,-1117.60911532,0.00014795,2]
[399461832,1766376639621,-1500.0,0.00014795,2]
[399461833,1766376639630,-720.0,0.00014891,2]
[399461834,1766376639640,-1274.62483761,0.00014916,2]
[399461835,1766376639649,-2000.0,0.00014916,2]
[399461836,1766376639659,-2000.0,0.00014916,2]
[399461837,1766376639668,-2000.0,0.00014916,2]
[399461838,1766376639677,-2000.0,0.00014916,2]
[399461839,1766376639687,-3140.88609444,0.00014978,2]
[399461840,1766376639696,-1000.0,0.00015,2]
[399461841,1766376639706,-800.0,0.00015068,2]
[399461842,1766376639715,-260.0,0.00015178,2]
[399461843,1766376639724,-1200.0,0.00015316,2]
[399461844,1766376639734,-2000.0,0.00015342,2]
[399461845,1766376639743,-3140.88609444,0.00015446,2]
[399461846,1766376639753,-5322.1269182,0.00015463,2]
[399461847,1766376639762,-1256.0574604,0.00015463,2]
[399461848,1766376639771,-3390.284423,0.00015463,2]
[399461849,1766376639781,-2500.0,0.00015464,2]
[399461850,1766376639790,-2500.0,0.00015464,2]
[399461851,1766376639799,-2500.0,0.00015464,2]
[399461852,1766376639809,-2090.01244182,0.00015464,2]
[399461853,1766376639818,-2307.13262935,0.00015636,2]
[399461854,1766376639828,-360.0,0.00015726,2]
[399461855,1766376639837,-1500.0,0.00015864,2]
[399461856,1766376639847,-2500.0,0.0001589,2]
[399461857,1766376639856,-587.0,0.00015953,2]
[399461858,1766376639865,-150.0,0.00016,2]
[399461859,1766376639875,-3000.0,0.00016012,2]
[399461860,1766376640135,-3000.0,0.00016012,2]
[399461861,1766376640145,-3000.0,0.00016012,2]
[399461862,1766376640154,-2351.0,0.00016058,2]
[399461863,1766376640164,-1600.0,0.00016164,2]
[399461864,1766376640175,-160.0,0.00016185,10]
[399461865,1766376640185,-293.71283196,0.00016207,2]
[399461867,1766376640195,-460.0,0.00016274,2]
[399461868,1766376640204,-375.7775887,0.00016301,2]
[399461869,1766376640215,-375.7775887,0.00016301,2]
[399461870,1766376640224,-622.60683285,0.00016348,7]
[399461871,1766376640234,-864.0,0.0001638,2]
[399461873,1766376640244,-1800.0,0.00016412,2]
[399461875,1766376640254,-168.0,0.00016426,2]
[399461877,1766376640264,-3000.0,0.00016438,2]
[399461879,1766376640273,-182.68,0.0001644,2]
[399461881,1766376640282,-182.68,0.0001644,2]
[399461883,1766376640291,-160.0,0.000165,11]
[399461885,1766376640300,-163.193767,0.000165,5]
[399461887,1766376640310,-3500.0,0.0001656,2]
[399461889,1766376640319,-3500.0,0.0001656,2]
[399461891,1766376640328,-3500.0,0.0001656,2]
[399461893,1766376640337,-238.0,0.00016603,3]
[399461895,1766376640346,-182.68,0.00016818,2]
[399461896,1766376640356,-560.0,0.00016822,2]
[399461898,1766376640365,-11539.42419757,0.00016828,2]
[399461900,1766376640374,-385.0,0.00016833,2]
[399461902,1766376640383,-1362.0,0.00016897,2]
[399461904,1766376640392,-633.0,0.00016897,2]
[399461906,1766376640401,-2160.0,0.00016897,2]
[399461908,1766376640410,-416.0,0.00016897,2]
[399461910,1766376640419,-2100.0,0.0001696,2]
[399461912,1766376640428,-3500.0,0.00016986,2]
[399461914,1766376640437,-100000.0,0.0001699,2]
[399461916,1766376640446,-445.0,0.00017019,2]
[399461918,1766376640455,-2578.61319143,0.00017108,2]
[399461920,1766376640466,-592.42666138,0.00017108,2]
[399461922,1766376640475,-3795.55373181,0.00017108,2]
[399461924,1766376640484,-535.0,0.00017158,2]
[399461926,1766376640493,-182.68,0.00017179,2]
[399461927,1766376640502,-168.0,0.00017185,2]
[399461929,1766376640511,-168655.9740882,0.00017189,2]
[399461931,1766376640520,-1882.282467,0.0001726,2]
[399461933,1766376640530,-153.0,0.0001726,2]
[399461935,1766376640539,-168.0,0.00017289,2]
[399461937,1766376640548,-500.0,0.00017356,7]
[399461939,1766376640557,-660.0,0.0001737,2]
[399461941,1766376640566,-823.0,0.0001749,2]
[399461943,1766376640576,-950.91049859,0.00017508,2]
[399461945,1766376640585,-225.8533509,0.00017534,2]
[399461947,1766376640594,-406.53603162,0.00017534,2]
[399461949,1766376640603,-1694.88646607,0.00017534,2]
[399461951,1766376640612,-168.0,0.00017618,2]
[399461953,1766376640621,-1256.0574604,0.00017642,2]
[399461955,1766376640631,-2520.0,0.00017664,2]
[399461957,1766376640640,-180.0,0.00017699,3]
[399461959,1766376640649,-4386.597193,0.00017736,2]
[399461961,1766376640658,-760.0,0.00017918,2]
[399461963,1766376640681,-1000.0,0.00018018,2]
[399461966,1766376640690,-160.165,0.00018204,2]
[399461967,1766376640699,-185.01030001,0.00018204,2]
[399461969,1766376640709,-324.45022135,0.00018207,2]
[399461971,1766376640719,-375.7775887,0.00018219,2]
[399461973,1766376640728,-751.401704,0.00018219,2]
[399461975,1766376640737,-375.700852,0.00018219,2]
[399461977,1766376640746,-600.0,0.0001824,2]
[399461979,1766376640755,-191.28782966,0.00018389,2]
[399461981,1766376640764,-600.0,0.0001843,2]
[399461983,1766376640773,-860.0,0.00018466,2]
[399461985,1766376640782,-664.6603278,0.0001862,2]
[399461987,1766376640791,-773.05839941,0.0001862,2]
[399461989,1766376640801,-731.11619883,0.0001872,8]
[399461991,1766376640810,-1187.5270315,0.00018775,2]
[399461993,1766376640820,-182.0,0.00018795,3]
[399461995,1766376640829,-302.8183302,0.000189,2]
[399461997,1766376640838,-302.8183302,0.000189,2]
[399461999,1766376640849,-722.00799216,0.00018942,2]
[399462001,1766376640857,-398.69515664,0.00018942,2]
[399462003,1766376640867,-27061.03291039,0.00019,2]
[399462005,1766376640876,-51862.16680714,0.00019,2]
[399462007,1766376640886,-2603.49,0.00019,2]
[399462009,1766376640896,-17910.97905266,0.00019,2]
[399462011,1766376640904,-960.0,0.00019014,2]
[399462013,1766376640914,-1732.7378126,0.00019078,2]
[399462015,1766376640923,-302.8183302,0.00019089,2]
[399462017,1766376640932,-302.8183302,0.00019089,2]
[399462019,1766376640942,-1152.0,0.00019175,2]
[399462021,1766376640951,-150.0,0.00019178,2]
[399462023,1766376640960,-300.0,0.00019178,2]
[399462025,1766376640970,-450.0,0.00019178,2]
[399462027,1766376640979,-600.0,0.00019178,2]
[399462029,1766376640988,-750.0,0.00019178,2]
[399462031,1766376640997,-830.39007148,0.00019178,2]
[399462033,1766376641007,-3775.49533538,0.00019178,2]
[399462067,1766376641527,-1224.50466462,0.00019178,2]
[399462068,1766376641537,-180.9652231,0.00019178,2]
[399462069,1766376641548,-4819.0347769,0.00019178,2]
[399462070,1766376641557,-5000.0,0.00019178,2]
[399462071,1766376641566,-5000.0,0.00019178,2]
[399462072,1766376641575,-5000.0,0.00019178,2]
[399462073,1766376641583,-5000.0,0.00019178,2]
[399462074,1766376641592,-2760.11541419,0.00019178,2]
[399462368,1766376879943,400000.0,0.000328,60]
[399462380,1766377126070,3331.344752,0.00032876,60]
[399462397,1766377790618,1001.0,0.000328,60]
[399462459,1766377838559,-302.0,8.119e-05,2]
[399462460,1766377838616,-232.0,8.119e-05,2]
[399462461,1766377838625,-150.0,8.42e-05,2]
[399462462,1766377838634,-150.0,8.594e-05,2]
[399462463,1766377838643,-150.0,8.821e-05,2]
[399462464,1766377838652,-150.0,9.222e-05,2]
[399462465,1766377838660,-150.0,9.623e-05,2]
[399462466,1766377838669,-150.0,0.00010024,2]
[399462467,1766377838678,-150.0,0.00010425,2]
[399462468,1766377838688,-1041.66666667,0.00010553,2]
[399462469,1766377838697,-177.0,0.00010594,2]
[399462470,1766377838706,-150.0,0.00010826,2]
[399462471,1766377838714,-68.90189159,0.00011227,2]
[399462472,1766377838725,-94.93810841,0.00011227,2]
[399462473,1766377838735,-184.32,0.00011628,2]
[399462474,1766377838743,-204.8,0.00012029,2]
[399462475,1766377838752,-204.0,0.00012594,2]
[399462476,1766377838761,-300.0,0.00013272,2]
[399462477,1766377838770,-502.32858573,0.00013273,2]
[399462478,1766377838779,-500.0,0.00013273,2]
[399462479,1766377838788,-501.01419472,0.00013273,2]
[399462480,1766377838797,-500.0,0.00013273,2]
[399462481,1766377838806,-500.0,0.00013273,2]
[399462482,1766377838815,-500.0,0.00013273,2]